fUST/lending_fUST_20260608
["ID","MTS","AMOUNT","RATE_DAILY","PERIOD"]
[424413248,1780856750000,-603.96494584,0.00014849,2]
[424413251,1780856750000,-132.07795862,0.00014849,2]
[424413250,1780856750000,-500.0,0.00014849,2]
[424413249,1780856750000,-337.9790341,0.00014849,2]
[424413255,1780856827000,-258.12665357,0.00015,2]
[424413256,1780856837000,-2119.99879626,0.00014702,2]
[424413257,1780856853000,-892.73257453,0.00014702,2]
[424413491,1780857039000,-186.0,0.0001812,2]
[424413493,1780857039000,-263.0633787,0.00018219,2]
[424413489,1780857039000,-160.0,0.00017417,2]
[424413505,1780857039000,-500.0,0.00018975,2]
[424413499,1780857039000,-178.209,0.00018789,2]
[424413487,1780857039000,-152.0,0.00016626,7]
[424413503,1780857039000,-500.0,0.00018975,2]
[424413497,1780857039000,-189.3,0.0001863,2]
[424413483,1780857039000,-615.40426625,0.00014555,2]
[424413481,1780857039000,-5000.0,0.00014409,2]
[424413501,1780857039000,-189.3,0.00018904,2]
[424413495,1780857039000,-193.66967797,0.00018425,2]
[424413485,1780857039000,-358.57581275,0.00015,2]
[424413507,1780857039000,-500.0,0.00018975,2]
[424413518,1780857039000,-500.0,0.00018975,2]
[424413528,1780857039000,-211.219842,0.00019005,2]
[424413530,1780857039000,-98.76530897,0.00019067,2]
[424413520,1780857039000,-500.0,0.00018975,2]
[424413516,1780857039000,-500.0,0.00018975,2]
[424413514,1780857039000,-500.0,0.00018975,2]
[424413524,1780857039000,-6612.39913282,0.00018978,2]
[424413526,1780857039000,-286.87176764,0.00018978,2]
[424413512,1780857039000,-500.0,0.00018975,2]
[424413509,1780857039000,-500.0,0.00018975,2]
[424413522,1780857039000,-411.11197568,0.00018975,2]
[424413511,1780857039000,-500.0,0.00018975,2]
[424413718,1780857046000,-1801.77212347,0.00018876,2]
[424413721,1780857149000,-152.0,0.00016628,7]
[424413734,1780857957000,-2709.34323463,0.00017514,2]
[424413733,1780857957000,-152.0,0.00016628,7]
[424413736,1780858031000,-1583.39056127,0.00017513,2]
[424413737,1780858040000,-2210.34725757,0.00017513,2]
[424413740,1780858047000,-192.34876221,0.0001769,2]
[424413738,1780858047000,-1206.26218116,0.00017513,2]
[424413739,1780858047000,-500.0,0.0001769,2]
[424413788,1780858232000,-500.0,0.00017512,2]
[424413787,1780858232000,-500.0,0.00017512,2]
[424413776,1780858232000,-500.0,0.00017512,2]
[424413778,1780858232000,-500.0,0.00017512,2]
[424413779,1780858232000,-500.0,0.00017512,2]
[424413785,1780858232000,-500.0,0.00017512,2]
[424413786,1780858232000,-500.0,0.00017512,2]
[424413782,1780858232000,-500.0,0.00017512,2]
[424413774,1780858232000,-500.0,0.00017512,2]
[424413780,1780858232000,-500.0,0.00017512,2]
[424413784,1780858232000,-302.23984422,0.00017512,2]
[424413783,1780858232000,-561.59285986,0.00017512,2]
[424413772,1780858232000,-500.0,0.00017512,2]
[424413781,1780858232000,-500.0,0.00017512,2]
[424413771,1780858232000,-270.56822743,0.00017308,2]
[424413791,1780858232000,-500.0,0.00017689,2]
[424413794,1780858232000,-500.0,0.00017689,2]
[424413777,1780858232000,-500.0,0.00017512,2]
[424413795,1780858232000,-500.0,0.00017689,2]
[424413790,1780858232000,-500.0,0.00017689,2]
[424413808,1780858232000,-319.70953013,0.00017689,2]
[424413804,1780858232000,-500.0,0.00017689,2]
[424413805,1780858232000,-500.0,0.00017689,2]
[424413802,1780858232000,-500.0,0.00017689,2]
[424413806,1780858232000,-500.0,0.00017689,2]
[424413803,1780858232000,-500.0,0.00017689,2]
[424413800,1780858232000,-500.0,0.00017689,2]
[424413807,1780858232000,-500.0,0.00017689,2]
[424413799,1780858232000,-500.0,0.00017689,2]
[424413801,1780858232000,-500.0,0.00017689,2]
[424413793,1780858232000,-500.0,0.00017689,2]
[424413792,1780858232000,-500.0,0.00017689,2]
[424413789,1780858232000,-5000.0,0.00017513,2]
[424413796,1780858232000,-500.0,0.00017689,2]
[424413798,1780858232000,-500.0,0.00017689,2]
[424413797,1780858232000,-500.0,0.00017689,2]
[424413812,1780858238000,-750.82683111,0.00017308,2]
[424413813,1780858238000,-180.29046987,0.00017689,2]
[424413814,1780858238000,-169.98899027,0.00017689,2]
[424413811,1780858238000,-481.01018209,0.00017308,2]
[424414125,1780858241000,-237.50346279,0.00018219,2]
[424414130,1780858241000,-164.06,0.0001863,2]
[424414126,1780858241000,-186.0,0.00018238,2]
[424414128,1780858241000,-174.30271017,0.0001842,2]
[424414132,1780858241000,-151.0,0.00018867,2]
[424414123,1780858241000,-409.02212629,0.00017689,2]
[424414138,1780858241000,-38678.47018479,0.00018878,2]
[424414136,1780858241000,-16709.83838822,0.00018878,2]
[424414121,1780858241000,-330.01100973,0.00017689,2]
[424414134,1780858241000,-178.209,0.00018876,2]
[424414387,1780858243000,-1594.87904515,0.00018878,2]
[424414385,1780858243000,-5000.0,0.00017512,2]
[424414755,1780858246000,-8037.24941359,0.00018878,2]
[424414764,1780858246000,-6378.91390268,0.00018878,2]
[424417792,1780859149000,-286.13432346,0.00016443,2]
[424417794,1780859227000,-366.97048126,0.00016443,2]
[424417795,1780859227000,-205.32029703,0.00016443,2]
[424417793,1780859227000,-34.96484764,0.00016443,2]
[424417796,1780859231000,-749.55946425,0.00016278,2]
[424417797,1780859233000,-189.86109434,0.00016278,2]
[424417798,1780859236000,-1018.9422329,0.00016278,2]
[424417810,1780859432000,-300.839,0.00016115,2]
[424417856,1780859438000,-367.49768857,0.00015621,2]
[424417857,1780859438000,-303.24184584,0.00016114,2]
[424417864,1780859438000,-285.89591463,0.00016114,2]
[424417875,1780859438000,-4515.05543286,0.00016115,2]
[424417877,1780859438000,-152.0,0.0001663,7]
[424417869,1780859438000,-184.10556714,0.00016115,2]
[424417879,1780859438000,-158.0,0.00017233,3]
[424417866,1780859438000,-229.06587332,0.00016114,2]
[424417883,1780859438000,-156.87243916,0.00018424,2]
[424417887,1780859438000,-153.12,0.0001863,2]
[424417886,1780859438000,-178.209,0.0001863,2]
[424417891,1780859438000,-328.64312798,0.00018673,2]
[424417890,1780859438000,-151.0,0.00018667,2]
[424417881,1780859438000,-186.0,0.00018124,2]
[424417927,1780859440000,-140.63458398,0.00018673,2]
[424417926,1780859440000,-171.35687202,0.00018673,2]
[424417931,1780859441000,-500.0,0.00018673,2]
[424417928,1780859441000,-304.0,0.00018673,2]
[424417930,1780859441000,-500.0,0.00018673,2]
[424417932,1780859441000,-500.0,0.00018673,2]
[424417933,1780859441000,-500.0,0.00018673,2]
[424417929,1780859441000,-55.36541602,0.00018673,2]
[424417934,1780859441000,-500.0,0.00018673,2]
[424417935,1780859441000,-500.0,0.00018673,2]
[424417937,1780859441000,-407.36711642,0.00018673,2]
[424417939,1780859441000,-493.61524997,0.00019078,2]
[424417938,1780859441000,-153.12,0.00018904,2]
[424417936,1780859441000,-500.0,0.00018673,2]
[424418051,1780860338000,-2754.3989038,0.0001627,2]
[424418050,1780860338000,-300.0,0.00016268,2]
[424418052,1780860439000,-287.96191861,0.0001558,14]
[424418053,1780860439000,-1639.02310746,0.00016335,2]
[424418054,1780860444000,-293.0395508,0.00016335,2]
[424418055,1780860449000,-905.35354037,0.00016335,2]
[424418092,1780860632000,-337.9790341,0.00016171,2]
[424418093,1780860632000,-0.2764659,0.00016171,2]
[424418100,1780860632000,-515.61781063,0.00016172,2]
[424418095,1780860632000,-500.0,0.00016171,2]
[424418099,1780860632000,-500.0,0.00016171,2]
[424418096,1780860632000,-500.0,0.00016171,2]
[424418098,1780860632000,-387.489597,0.00016171,2]
[424418094,1780860632000,-499.7235341,0.00016171,2]
[424418097,1780860632000,-500.0,0.00016171,2]
[424418194,1780860638000,-474.26108647,0.00019075,2]
[424418190,1780860638000,-500.0,0.00019075,2]
[424418188,1780860638000,-500.0,0.00019075,2]
[424418186,1780860638000,-500.0,0.00019075,2]
[424418184,1780860638000,-500.0,0.00019075,2]
[424418182,1780860638000,-178.21,0.00019074,2]
[424418180,1780860638000,-151.0,0.00019067,2]
[424418173,1780860638000,-229.15,0.00016945,2]
[424418176,1780860638000,-186.0,0.00018388,2]
[424418171,1780860638000,-249.243,0.0001677,2]
[424418169,1780860638000,-152.0,0.00016632,7]
[424418167,1780860638000,-200.78964837,0.00016604,7]
[424418166,1780860638000,-223.85795867,0.00016511,2]
[424418164,1780860638000,-4484.38218937,0.00016172,2]
[424418192,1780860638000,-500.0,0.00019075,2]
[424418178,1780860638000,-176.016535,0.00018602,2]
[424418207,1780860638000,-542.5339,0.00019178,2]
[424418226,1780860638000,-500.0,0.00019178,2]
[424418209,1780860638000,-500.0,0.00019178,2]
[424418197,1780860638000,-500.0,0.00019075,2]
[424418232,1780860638000,-500.0,0.00019178,2]
[424418228,1780860638000,-500.0,0.00019178,2]
[424418230,1780860638000,-500.0,0.00019178,2]
[424418234,1780860638000,-500.0,0.00019178,2]
[424418222,1780860638000,-500.0,0.00019178,2]
[424418220,1780860638000,-1083.45,0.00019178,2]
[424418218,1780860638000,-846.19,0.00019178,2]
[424418224,1780860638000,-500.0,0.00019178,2]
[424418203,1780860638000,-500.0,0.00019075,2]
[424418205,1780860638000,-5739.98015711,0.00019078,2]
[424418201,1780860638000,-500.0,0.00019075,2]
[424418214,1780860638000,-500.0,0.00019178,2]
[424418213,1780860638000,-500.0,0.00019178,2]
[424418199,1780860638000,-500.0,0.00019075,2]
[424418216,1780860638000,-500.0,0.00019178,2]
[424418211,1780860638000,-500.0,0.00019178,2]
[424418264,1780860639000,-76.42757669,0.00019178,2]
[424418266,1780860639000,-604.42,0.00019178,2]
[424418258,1780860639000,-543.37,0.00019178,2]
[424418268,1780860639000,-500.0,0.00019178,2]
[424418277,1780860639000,-500.0,0.00019178,2]
[424418272,1780860639000,-1598.34,0.00019178,2]
[424418280,1780860639000,-700.23,0.00019178,2]
[424418256,1780860639000,-659.9,0.00019178,2]
[424418274,1780860639000,-310.97324982,0.00019178,2]
[424418270,1780860639000,-500.0,0.00019178,2]
[424418240,1780860639000,-153.34692013,0.00019178,2]
[424418260,1780860639000,-500.0,0.00019178,2]
[424418249,1780860639000,-500.0,0.00019178,2]
[424418251,1780860639000,-709.51,0.00019178,2]
[424418247,1780860639000,-916.59,0.00019178,2]
[424418245,1780860639000,-507.02863497,0.00019178,2]
[424418243,1780860639000,-1042.16307987,0.00019178,2]
[424418238,1780860639000,-500.0,0.00019178,2]
[424418237,1780860639000,-698.45,0.00019178,2]
[424418276,1780860639000,-500.0,0.00019178,2]
[424418253,1780860639000,-500.0,0.00019178,2]
[424418284,1780860639000,-500.0,0.00019178,2]
[424418262,1780860639000,-436.74242331,0.00019178,2]
[424418286,1780860639000,-500.0,0.00019178,2]
[424418282,1780860639000,-500.0,0.00019178,2]
[424418322,1780860639000,-691.55,0.00019178,2]
[424418324,1780860639000,-500.0,0.00019178,2]
[424418326,1780860639000,-561.64,0.00019178,2]
[424418320,1780860639000,-500.0,0.00019178,2]
[424418307,1780860639000,-1541.03,0.00019178,2]
[424418311,1780860639000,-500.0,0.00019178,2]
[424418305,1780860639000,-386.93278558,0.00019178,2]
[424418318,1780860639000,-616.3,0.00019178,2]
[424418315,1780860639000,-500.0,0.00019178,2]
[424418309,1780860639000,-1142.37,0.00019178,2]
[424418328,1780860639000,-61.00799107,0.00019178,2]
[424418295,1780860639000,-500.0,0.00019178,2]
[424418301,1780860639000,-500.0,0.00019178,2]
[424418294,1780860639000,-500.0,0.00019178,2]
[424418288,1780860639000,-500.0,0.00019178,2]
[424418292,1780860639000,-500.0,0.00019178,2]
[424418290,1780860639000,-500.0,0.00019178,2]
[424418299,1780860639000,-730.06,0.00019178,2]
[424418303,1780860639000,-500.0,0.00019178,2]
[424418313,1780860639000,-679.98,0.00019178,2]
[424418297,1780860639000,-500.0,0.00019178,2]
[424418362,1780860641000,-75.66726176,0.00019178,2]
[424418361,1780860641000,-438.99200893,0.00019178,2]
[424418387,1780860646000,-96.66637333,0.00019178,2]
[424418386,1780860646000,-403.33362667,0.00019178,2]
[424418385,1780860646000,-733.21,0.00019178,2]
[424418384,1780860646000,-424.33273824,0.00019178,2]
[424418388,1780860647000,-500.0,0.00019178,2]
[424418389,1780860647000,-1282.08,0.00019178,2]
[424418390,1780860647000,-500.0,0.00019178,2]
[424418391,1780860647000,-500.0,0.00019178,2]
[424418395,1780860647000,-152.30180357,0.00019178,2]
[424418394,1780860647000,-1772.99,0.00019178,2]
[424418392,1780860647000,-971.98,0.00019178,2]
[424418393,1780860647000,-835.92,0.00019178,2]
[424418396,1780860750000,-171.26444878,0.00016744,2]
[424418405,1780861405000,280.59550927,0.00024909,110]
[424418407,1780861406000,280.59550927,0.00024909,110]
[424418406,1780861406000,280.59550927,0.00024909,110]
[424418408,1780861523000,168.35730556,0.00024909,110]
[424418409,1780861524000,168.35730556,0.00024909,110]
[424418412,1780861549000,-2574.48329077,0.00017107,2]
[424418410,1780861549000,-152.0,0.00016632,7]
[424418411,1780861549000,-154.16551078,0.00017106,2]
[424418413,1780861627000,-1454.35546022,0.00016936,2]
[424418414,1780861629000,-2079.84788585,0.00016936,2]
[424418415,1780861643000,168.35730556,0.00024909,110]
[424418417,1780861648000,-164.0,0.00017288,3]
[424418418,1780861648000,-271.65169771,0.000174,2]
[424418416,1780861648000,-1465.79665393,0.00016936,2]
[424418430,1780861832000,-629.49348648,0.000174,2]
[424418434,1780861832000,-2056.59972489,0.000176,2]
[424418432,1780861832000,-478.0052998,0.000176,2]
[424418429,1780861832000,-487.92621397,0.000174,2]
[424418423,1780861832000,-152.0,0.00016635,7]
[424418427,1780861832000,-1775.02711301,0.000174,2]
[424418436,1780861832000,-629.49348648,0.000176,2]
[424418425,1780861832000,-5000.0,0.00017226,2]
[424418438,1780861832000,-182.81458166,0.00017797,2]
[424418424,1780861832000,-179.897804,0.00016967,2]
[424418449,1780861832000,-500.0,0.00017797,2]
[424418451,1780861832000,-500.0,0.00017797,2]
[424418453,1780861832000,-500.0,0.00017797,2]
[424418455,1780861832000,-500.0,0.00017797,2]
[424418445,1780861832000,-500.0,0.00017797,2]
[424418443,1780861832000,-350.64033773,0.00017797,2]
[424418447,1780861832000,-500.0,0.00017797,2]
[424418461,1780861832000,-464.48785731,0.00017797,2]
[424418457,1780861832000,-500.0,0.00017797,2]
[424418459,1780861832000,-500.0,0.00017797,2]
[424418440,1780861832000,-149.35966227,0.00017797,2]
[424418575,1780861839000,-500.0,0.00018178,7]
[424418574,1780861839000,-500.0,0.00018178,7]
[424418573,1780861839000,-500.0,0.00018178,7]
[424418571,1780861839000,-500.0,0.00018178,7]
[424418570,1780861839000,-500.0,0.00018178,7]
[424418566,1780861839000,-500.0,0.00018178,7]
[424418569,1780861839000,-500.0,0.00018178,7]
[424418568,1780861839000,-500.0,0.00018178,7]
[424418578,1780861839000,-500.0,0.00018178,7]
[424418561,1780861839000,-500.0,0.00018178,7]
[424418565,1780861839000,-500.0,0.00018178,7]
[424418579,1780861839000,-500.0,0.00018178,7]
[424418580,1780861839000,-500.0,0.00018178,7]
[424418572,1780861839000,-500.0,0.00018178,7]
[424418581,1780861839000,-500.0,0.00018178,7]
[424418577,1780861839000,-500.0,0.00018178,7]
[424418567,1780861839000,-500.0,0.00018178,7]
[424418582,1780861839000,-500.0,0.00018178,7]
[424418590,1780861839000,-160.55330646,0.00018477,2]
[424418591,1780861839000,-170.76591542,0.00018477,2]
[424418593,1780861839000,-692.07424168,0.000185,2]
[424418583,1780861839000,-278.71,0.00018178,7]
[424418584,1780861839000,-160.0,0.00018178,7]
[424418592,1780861839000,-2534.60502469,0.000185,2]
[424418587,1780861839000,-2534.60502469,0.000183,2]
[424418585,1780861839000,-235.4880464,0.00018178,2]
[424418576,1780861839000,-500.0,0.00018178,7]
[424418562,1780861839000,-500.0,0.00018178,7]
[424418558,1780861839000,-500.0,0.00018178,7]
[424418563,1780861839000,-500.0,0.00018178,7]
[424418586,1780861839000,-692.07424168,0.000182,2]
[424418535,1780861839000,-500.0,0.00017797,2]
[424418544,1780861839000,-500.0,0.00018178,7]
[424418543,1780861839000,-214.28248033,0.00018107,2]
[424418545,1780861839000,-500.0,0.00018178,7]
[424418534,1780861839000,-11.98892094,0.00017797,2]
[424418546,1780861839000,-500.0,0.00018178,7]
[424418536,1780861839000,-2534.60502469,0.000178,2]
[424418537,1780861839000,-629.49348648,0.000178,2]
[424418541,1780861839000,-2534.60502469,0.000181,2]
[424418538,1780861839000,-2534.60502469,0.00018,2]
[424418542,1780861839000,-629.49348648,0.000181,2]
[424418539,1780861839000,-692.07424168,0.00018,2]
[424418540,1780861839000,-629.49348648,0.00018,2]
[424418547,1780861839000,-500.0,0.00018178,7]
[424418548,1780861839000,-500.0,0.00018178,7]
[424418549,1780861839000,-500.0,0.00018178,7]
[424418555,1780861839000,-500.0,0.00018178,7]
[424418554,1780861839000,-500.0,0.00018178,7]
[424418552,1780861839000,-500.0,0.00018178,7]
[424418550,1780861839000,-500.0,0.00018178,7]
[424418553,1780861839000,-500.0,0.00018178,7]
[424418551,1780861839000,-500.0,0.00018178,7]
[424418556,1780861839000,-500.0,0.00018178,7]
[424418557,1780861839000,-500.0,0.00018178,7]
[424418559,1780861839000,-500.0,0.00018178,7]
[424418560,1780861839000,-500.0,0.00018178,7]
[424418564,1780861839000,-500.0,0.00018178,7]
[424418594,1780861839000,-188.145,0.00018518,2]
[424418598,1780861839000,-2207.0,0.00018545,2]
[424418589,1780861839000,-160.92721312,0.00018477,2]
[424418623,1780861839000,-1433.3493322,0.00019163,2]
[424418629,1780861839000,-616.17,0.00019178,2]
[424418630,1780861839000,-1699.11,0.00019178,2]
[424418632,1780861839000,-500.0,0.00019178,2]
[424418628,1780861839000,-538.24,0.00019178,2]
[424418631,1780861839000,-500.0,0.00019178,2]
[424418626,1780861839000,-55717.7343809,0.00019178,2]
[424418634,1780861839000,-343.88247245,0.00019178,2]
[424418642,1780861839000,-855.18076514,0.00019178,2]
[424418643,1780861839000,-500.0,0.00019178,2]
[424418645,1780861839000,-500.0,0.00019178,2]
[424418640,1780861839000,-577.26,0.00019178,2]
[424418637,1780861839000,-500.0,0.00019178,2]
[424418635,1780861839000,-500.0,0.00019178,2]
[424418644,1780861839000,-580.22380747,0.00019178,2]
[424418636,1780861839000,-500.0,0.00019178,2]
[424418633,1780861839000,-969.45,0.00019178,2]
[424418639,1780861839000,-543.76,0.00019178,2]
[424418641,1780861839000,-500.0,0.00019178,2]
[424418647,1780861839000,-811.93,0.00019178,2]
[424418648,1780861839000,-288.56245526,0.00019178,2]
[424418646,1780861839000,-500.0,0.00019178,2]
[424418651,1780861839000,-500.0,0.00019178,2]
[424418653,1780861839000,-500.0,0.00019178,2]
[424418649,1780861839000,-500.0,0.00019178,2]
[424418652,1780861839000,-748.9,0.00019178,2]
[424418588,1780861839000,-692.07424168,0.000184,2]
[424418624,1780861839000,-1073.4559,0.00019178,2]
[424418621,1780861839000,-2534.60502469,0.000191,2]
[424418638,1780861839000,-500.0,0.00019178,2]
[424418625,1780861839000,-786.6764,0.00019178,2]
[424418627,1780861839000,-519.9285,0.00019178,2]
[424418595,1780861839000,-600.0,0.00018541,2]
[424418597,1780861839000,-3637.0,0.00018545,2]
[424418604,1780861839000,-692.07424168,0.000187,2]
[424418596,1780861839000,-1842.845,0.00018545,2]
[424418603,1780861839000,-2534.60502469,0.000187,2]
[424418602,1780861839000,-296.14,0.0001863,2]
[424418650,1780861839000,-1090.4,0.00019178,2]
[424418606,1780861839000,-481624.51075083,0.00018878,2]
[424418599,1780861839000,-186.0,0.00018545,2]
[424418607,1780861839000,-2534.60502469,0.000189,2]
[424418600,1780861839000,-150.138,0.00018545,2]
[424418601,1780861839000,-319.823466,0.00018612,2]
[424418618,1780861839000,-1549.92699872,0.00019,2]
[424418605,1780861839000,-151.0,0.00018867,2]
[424418609,1780861839000,-151.5,0.00018904,2]
[424418620,1780861839000,-5699.09408783,0.00019078,2]
[424418616,1780861839000,-296.14,0.00018904,2]
[424418614,1780861839000,-151.5,0.00018904,2]
[424418615,1780861839000,-226.24119051,0.00018904,2]
[424418611,1780861839000,-302.47922684,0.00018904,2]
[424418613,1780861839000,-151.5,0.00018904,2]
[424418622,1780861839000,-301.1113443,0.00019163,2]
[424418610,1780861839000,-151.5,0.00018904,2]
[424418608,1780861839000,-151.5,0.00018904,2]
[424418619,1780861839000,-264.18,0.00019074,2]
[424418617,1780861839000,-151.0,0.00018978,2]
[424418612,1780861839000,-168.57022042,0.00018904,2]
[424418702,1780861840000,-500.0,0.00019178,2]
[424418700,1780861840000,-500.0,0.00019178,2]
[424418689,1780861840000,-500.0,0.00019178,2]
[424418690,1780861840000,-500.0,0.00019178,2]
[424418693,1780861840000,-500.0,0.00019178,2]
[424418691,1780861840000,-1074.94,0.00019178,2]
[424418688,1780861840000,-1715.46,0.00019178,2]
[424418687,1780861840000,-521.77,0.00019178,2]
[424418699,1780861840000,-500.0,0.00019178,2]
[424418698,1780861840000,-484.46085515,0.00019178,2]
[424418697,1780861840000,-500.0,0.00019178,2]
[424418696,1780861840000,-500.0,0.00019178,2]
[424418692,1780861840000,-2150.57,0.00019178,2]
[424418704,1780861840000,-987.3,0.00019178,2]
[424418728,1780861840000,-500.0,0.00019178,2]
[424418707,1780861840000,-1749.99,0.00019178,2]
[424418705,1780861840000,-1020.19,0.00019178,2]
[424418706,1780861840000,-517.58,0.00019178,2]
[424418711,1780861840000,-500.0,0.00019178,2]
[424418701,1780861840000,-3518.66,0.00019178,2]
[424418709,1780861840000,-500.0,0.00019178,2]
[424418713,1780861840000,-500.0,0.00019178,2]
[424418710,1780861840000,-500.0,0.00019178,2]
[424418712,1780861840000,-500.0,0.00019178,2]
[424418708,1780861840000,-1622.39,0.00019178,2]
[424418715,1780861840000,-1131.14,0.00019178,2]
[424418726,1780861840000,-500.0,0.00019178,2]
[424418725,1780861840000,-500.0,0.00019178,2]
[424418695,1780861840000,-500.0,0.00019178,2]
[424418703,1780861840000,-500.0,0.00019178,2]
[424418694,1780861840000,-150.0,0.00019178,2]
[424418659,1780861840000,-500.0,0.00019178,2]
[424418683,1780861840000,-1513.1,0.00019178,2]
[424418657,1780861840000,-1865.17,0.00019178,2]
[424418658,1780861840000,-668.31,0.00019178,2]
[424418716,1780861840000,-500.0,0.00019178,2]
[424418655,1780861840000,-500.0,0.00019178,2]
[424418654,1780861840000,-1008.52,0.00019178,2]
[424418660,1780861840000,-500.0,0.00019178,2]
[424418661,1780861840000,-547.06,0.00019178,2]
[424418664,1780861840000,-500.0,0.00019178,2]
[424418663,1780861840000,-500.0,0.00019178,2]
[424418662,1780861840000,-500.0,0.00019178,2]
[424418671,1780861840000,-662.73,0.00019178,2]
[424418670,1780861840000,-500.0,0.00019178,2]
[424418667,1780861840000,-500.0,0.00019178,2]
[424418669,1780861840000,-500.0,0.00019178,2]
[424418686,1780861840000,-931.48,0.00019178,2]
[424418666,1780861840000,-500.0,0.00019178,2]
[424418668,1780861840000,-500.0,0.00019178,2]
[424418672,1780861840000,-500.0,0.00019178,2]
[424418674,1780861840000,-500.0,0.00019178,2]
[424418673,1780861840000,-500.0,0.00019178,2]
[424418675,1780861840000,-702.66,0.00019178,2]
[424418676,1780861840000,-678.34,0.00019178,2]
[424418682,1780861840000,-801.09,0.00019178,2]
[424418678,1780861840000,-877.91,0.00019178,2]
[424418680,1780861840000,-528.64,0.00019178,2]
[424418679,1780861840000,-500.0,0.00019178,2]
[424418681,1780861840000,-500.0,0.00019178,2]
[424418685,1780861840000,-500.0,0.00019178,2]
[424418684,1780861840000,-1885.18,0.00019178,2]
[424418677,1780861840000,-1228.66,0.00019178,2]
[424418665,1780861840000,-500.0,0.00019178,2]
[424418714,1780861840000,-563.54,0.00019178,2]
[424418727,1780861840000,-500.0,0.00019178,2]
[424418719,1780861840000,-575.19,0.00019178,2]
[424418779,1780861840000,-659.43,0.00019178,2]
[424418787,1780861840000,-500.0,0.00019178,2]
[424418783,1780861840000,-500.0,0.00019178,2]
[424418791,1780861840000,-500.0,0.00019178,2]
[424418793,1780861840000,-500.0,0.00019178,2]
[424418790,1780861840000,-954.25,0.00019178,2]
[424418781,1780861840000,-500.0,0.00019178,2]
[424418797,1780861840000,-500.0,0.00019178,2]
[424418795,1780861840000,-500.0,0.00019178,2]
[424418799,1780861840000,-568.8,0.00019178,2]
[424418801,1780861840000,-500.0,0.00019178,2]
[424418810,1780861840000,-5078.37,0.00019178,2]
[424418803,1780861840000,-13823.27,0.00019178,2]
[424418812,1780861840000,-1221.81,0.00019178,2]
[424418807,1780861840000,-500.0,0.00019178,2]
[424418813,1780861840000,-500.0,0.00019178,2]
[424418815,1780861840000,-815.28,0.00019178,2]
[424418822,1780861840000,-806.87,0.00019178,2]
[424418717,1780861840000,-677.43,0.00019178,2]
[424418820,1780861840000,-500.0,0.00019178,2]
[424418821,1780861840000,-500.0,0.00019178,2]
[424418824,1780861840000,-500.0,0.00019178,2]
[424418823,1780861840000,-1348.18,0.00019178,2]
[424418785,1780861840000,-500.0,0.00019178,2]
[424418819,1780861840000,-500.0,0.00019178,2]
[424418818,1780861840000,-703.74,0.00019178,2]
[424418817,1780861840000,-2571.28,0.00019178,2]
[424418808,1780861840000,-433.15446723,0.00019178,2]
[424418809,1780861840000,-500.0,0.00019178,2]
[424418805,1780861840000,-6756.39,0.00019178,2]
[424418814,1780861840000,-500.0,0.00019178,2]
[424418816,1780861840000,-750.75,0.00019178,2]
[424418777,1780861840000,-500.0,0.00019178,2]
[424418811,1780861840000,-782.71,0.00019178,2]